lending/lending_fUSD_20240710
["ID","MTS","AMOUNT","RATE_DAILY","PERIOD"]
[331672005,1720619452668,-515.8360108,0.00013863,2]
[331672006,1720619452677,-500.0,0.00013863,2]
[331672007,1720619452687,-500.0,0.00013863,2]
[331672008,1720619452696,-500.0,0.00013863,2]
[331672009,1720619452706,-500.0,0.00013863,2]
[331672010,1720619452715,-500.0,0.00013863,2]
[331672011,1720619452724,-500.0,0.00013863,2]
[331672012,1720619452733,-500.0,0.00013863,2]
[331672013,1720619452743,-468.26659525,0.00013863,2]
[331672014,1720619452752,-500.0,0.00013863,2]
[331672015,1720619452761,-500.0,0.00013863,2]
[331672016,1720619452770,-500.0,0.00013863,2]
[331672017,1720619452780,-699.22,0.00013863,2]
[331672018,1720619452790,-500.0,0.00013863,2]
[331672019,1720619452800,-500.0,0.00013863,2]
[331672020,1720619452809,-500.0,0.00013863,2]
[331672021,1720619452818,-500.0,0.00013863,2]
[331672022,1720619452830,-500.0,0.00013863,2]
[331672023,1720619452839,-500.0,0.00013863,2]
[331672024,1720619452848,-889.54,0.00013863,2]
[331672025,1720619452857,-500.0,0.00013863,2]
[331672026,1720619452866,-188.23245816,0.00013889,2]
[331672027,1720619452876,-1000.0,0.00013899,2]
[331672028,1720619453037,-9106.156,0.00013899,2]
[331672029,1720619453056,-7500.0,0.00013899,2]
[331672030,1720619453066,-4500.0,0.000139,2]
[331672031,1720619453076,-7756.1913,0.000139,2]
[331672032,1720619453086,-164.37168205,0.000139,2]
[331672033,1720619453095,-386.2,0.000139,2]
[331672034,1720619453105,-500.0,0.00013908,2]
[331672035,1720619453114,-526.16,0.00013908,2]
[331672036,1720619453123,-205.7505757,0.00013908,2]
[331672037,1720619453133,-500.0,0.00013908,2]
[331672038,1720619453143,-500.0,0.00013917,2]
[331672039,1720619453153,-500.0,0.00013917,2]
[331672040,1720619453163,-500.0,0.00013917,2]
[331672041,1720619453172,-500.0,0.00013917,2]
[331672042,1720619453182,-150.0,0.00013917,2]
[331672043,1720619453192,-500.0,0.00013917,2]
[331672044,1720619453201,-500.0,0.00013917,2]
[331672045,1720619453210,-500.0,0.00013917,2]
[331672046,1720619453220,-500.0,0.00013917,2]
[331672047,1720619453229,-500.0,0.00013917,2]
[331672048,1720619453239,-500.0,0.00013917,2]
[331672049,1720619453248,-500.0,0.00013917,2]
[331672050,1720619453258,-500.0,0.00013917,2]
[331672051,1720619453267,-500.0,0.00013917,2]
[331672052,1720619453277,-500.0,0.00013917,2]
[331672053,1720619453287,-500.0,0.00013917,2]
[331672054,1720619453296,-500.0,0.00013917,2]
[331672055,1720619453306,-500.0,0.00013917,2]
[331672056,1720619453324,-500.0,0.00013917,2]
[331672057,1720619453336,-694.25,0.00013917,2]
[331672058,1720619453346,-466.89767806,0.00013917,2]
[331672059,1720619453358,-500.0,0.00013917,2]
[331672060,1720619453369,-584.97,0.00013917,2]
[331672061,1720619453383,-500.0,0.00013917,2]
[331672062,1720619453394,-500.0,0.00013917,2]
[331672063,1720619453404,-500.0,0.00013917,2]
[331672064,1720619453414,-300.11140998,0.00013917,2]
[331672065,1720619453425,-605.61,0.00013917,2]
[331672066,1720619453435,-440.51867176,0.00013917,2]
[331672067,1720619453446,-500.0,0.00013917,2]
[331672068,1720619453456,-500.0,0.00013917,2]
[331672069,1720619453467,-500.0,0.00013917,2]
[331672070,1720619453476,-500.0,0.00013917,2]
[331672071,1720619453486,-500.0,0.00013917,2]
[331672072,1720619453497,-551.01959801,0.00013917,2]
[331672073,1720619453507,-500.0,0.00013917,2]
[331672074,1720619453518,-500.0,0.00013917,2]
[331672075,1720619453530,-500.0,0.00013917,2]
[331672076,1720619453541,-500.0,0.00013917,2]
[331672077,1720619453552,-344.83988804,0.00013917,2]
[331672078,1720619453562,-377.92912069,0.00013917,2]
[331672079,1720619453573,-500.0,0.00013917,2]
[331672080,1720619453583,-500.0,0.00013917,2]
[331672081,1720619453593,-500.0,0.00013917,2]
[331672082,1720619453603,-500.0,0.00013917,2]
[331672083,1720619453613,-500.0,0.00013917,2]
[331672084,1720619453626,-500.0,0.00013917,2]
[331672085,1720619453636,-187.92087672,0.00013917,2]
[331672086,1720619453645,-527.1373081,0.00013917,2]
[331672087,1720619453655,-500.0,0.00013917,2]
[331672088,1720619453666,-500.0,0.00013917,2]
[331672089,1720619453676,-1074.33,0.00013917,2]
[331672090,1720619453688,-500.0,0.00013917,2]
[331672091,1720619453699,-1791.03,0.00013917,2]
[331672092,1720619453709,-273.56650638,0.00013917,2]
[331672093,1720619453720,-500.0,0.00013917,2]
[331672094,1720619453730,-500.0,0.00013917,2]
[331672095,1720619453741,-500.0,0.00013917,2]
[331672096,1720619453752,-500.0,0.00013917,2]
[331672097,1720619453762,-500.0,0.00013917,2]
[331672098,1720619453772,-236.99887473,0.00013917,2]
[331672099,1720619453782,-500.0,0.00013917,2]
[331672100,1720619453793,-500.0,0.00013917,2]
[331672101,1720619453803,-500.0,0.00013917,2]
[331672102,1720619453814,-500.0,0.00013917,2]
[331672103,1720619453824,-500.0,0.00013917,2]
[331672104,1720619453834,-500.0,0.00013917,2]
[331672105,1720619453844,-500.0,0.00013917,2]
[331672106,1720619453854,-699.22,0.00013917,2]
[331672107,1720619453865,-500.0,0.00013917,2]
[331672108,1720619453877,-500.0,0.00013917,2]
[331672109,1720619453886,-500.0,0.00013917,2]
[331672110,1720619453896,-500.0,0.00013917,2]
[331672111,1720619453906,-500.0,0.00013917,2]
[331672112,1720619453917,-584.03,0.00013917,2]
[331672113,1720619453928,-889.54,0.00013917,2]
[331672114,1720619453938,-500.0,0.00013917,2]
[331672115,1720619453948,-1000.0,0.00013949,2]
[331672116,1720619453958,-500.0,0.00013963,2]
[331672117,1720619453969,-526.16,0.00013963,2]
[331672118,1720619453979,-500.0,0.00013963,2]
[331672119,1720619453990,-500.0,0.00013972,2]
[331672120,1720619454001,-500.0,0.00013972,2]
[331672121,1720619454011,-500.0,0.00013972,2]
[331672122,1720619454020,-500.0,0.00013972,2]
[331672123,1720619454030,-150.0,0.00013972,2]
[331672124,1720619454045,-166.38,0.00013972,2]
[331672125,1720619454056,-500.0,0.00013972,2]
[331672126,1720619454066,-500.0,0.00013972,2]
[331672127,1720619454077,-500.0,0.00013972,2]
[331672128,1720619454088,-500.0,0.00013972,2]
[331672129,1720619454099,-500.0,0.00013972,2]
[331672130,1720619454110,-500.0,0.00013972,2]
[331672131,1720619454121,-500.0,0.00013972,2]
[331672132,1720619454133,-500.0,0.00013972,2]
[331672133,1720619454144,-500.0,0.00013972,2]
[331672134,1720619454155,-500.0,0.00013972,2]
[331672135,1720619454165,-500.0,0.00013972,2]
[331672136,1720619454175,-500.0,0.00013972,2]
[331672137,1720619454186,-500.0,0.00013972,2]
[331672138,1720619454196,-694.25,0.00013972,2]
[331672139,1720619454207,-500.0,0.00013972,2]
[331672140,1720619454219,-584.97,0.00013972,2]
[331672141,1720619454230,-500.0,0.00013972,2]
[331672142,1720619454240,-500.0,0.00013972,2]
[331672143,1720619454250,-500.0,0.00013972,2]
[331672144,1720619454260,-605.61,0.00013972,2]
[331672145,1720619454270,-500.0,0.00013972,2]
[331672146,1720619454280,-500.0,0.00013972,2]
[331672147,1720619454290,-500.0,0.00013972,2]
[331672148,1720619454300,-500.0,0.00013972,2]
[331672149,1720619454310,-500.0,0.00013972,2]
[331672150,1720619454320,-500.0,0.00013972,2]
[331672151,1720619454330,-500.0,0.00013972,2]
[331672152,1720619454341,-425.53148779,0.00013972,2]
[331672153,1720619454351,-523.05698099,0.00013972,2]
[331672154,1720619454361,-500.0,0.00013972,2]
[331672155,1720619454371,-500.0,0.00013972,2]
[331672156,1720619454382,-500.0,0.00013972,2]
[331672157,1720619454392,-500.0,0.00013972,2]
[331672158,1720619454403,-500.0,0.00013972,2]
[331672159,1720619454413,-500.0,0.00013972,2]
[331672160,1720619454422,-500.0,0.00013972,2]
[331672161,1720619454432,-500.0,0.00013972,2]
[331672162,1720619454442,-1074.33,0.00013972,2]
[331672163,1720619454453,-450.75724759,0.00013972,2]
[331672164,1720619454463,-1791.03,0.00013972,2]
[331672165,1720619454472,-500.0,0.00013972,2]
[331672166,1720619454482,-500.0,0.00013972,2]
[331672167,1720619454493,-187.66298373,0.00013972,2]
[331672168,1720619454503,-500.0,0.00013972,2]
[331672169,1720619454513,-500.0,0.00013972,2]
[331672170,1720619454524,-212.1489504,0.00013972,2]
[331672171,1720619454535,-428.73415502,0.00013972,2]
[331672172,1720619454545,-500.0,0.00013972,2]
[331672173,1720619454555,-500.0,0.00013972,2]
[331672174,1720619454565,-500.0,0.00013972,2]
[331672175,1720619454576,-500.0,0.00013972,2]
[331672176,1720619454586,-500.0,0.00013972,2]
[331672177,1720619454596,-699.22,0.00013972,2]
[331672178,1720619454606,-533.6131696,0.00013972,2]
[331672179,1720619454616,-500.0,0.00013972,2]
[331672180,1720619454627,-500.0,0.00013972,2]
[331672181,1720619454637,-297.37895565,0.00013972,2]
[331672182,1720619454648,-500.0,0.00013972,2]
[331672183,1720619454658,-889.54,0.00013972,2]
[331672184,1720619454668,-500.0,0.00013972,2]
[331672185,1720619454678,-960.11352576,0.00013999,2]
[331672186,1720619454688,-613.05888307,0.00013999,2]
[331672187,1720619454699,-500.0,0.00013999,2]
[331672188,1720619454708,-500.0,0.00013999,2]
[331672189,1720619454719,-644.61,0.00013999,2]
[331672190,1720619454729,-500.0,0.00013999,2]
[331672191,1720619454739,-500.0,0.00013999,2]
[331672192,1720619454749,-500.0,0.00013999,2]
[331672193,1720619454764,-500.0,0.00013999,2]
[331672194,1720619454775,-500.0,0.00013999,2]
[331672195,1720619454784,-500.0,0.00013999,2]
[331672196,1720619454795,-605.70253853,0.00013999,2]
[331672197,1720619454804,-500.0,0.00013999,2]
[331672198,1720619454815,-500.0,0.00013999,2]
[331672199,1720619454824,-500.0,0.00013999,2]
[331672200,1720619454834,-500.0,0.00013999,2]
[331672201,1720619454844,-500.0,0.00013999,2]
[331672202,1720619454854,-500.0,0.00013999,2]
[331672203,1720619454865,-500.0,0.00013999,2]
[331672204,1720619454875,-500.0,0.00013999,2]
[331672205,1720619454884,-500.0,0.00013999,2]
[331672206,1720619454894,-500.0,0.00013999,2]
[331672207,1720619454904,-538.1,0.00013999,2]
[331672208,1720619454914,-500.0,0.00013999,2]
[331672209,1720619454924,-500.0,0.00013999,2]
[331672210,1720619454934,-500.0,0.00013999,2]
[331672211,1720619454945,-500.0,0.00013999,2]
[331672212,1720619454955,-500.0,0.00013999,2]
[331672213,1720619454965,-575.22,0.00013999,2]
[331672214,1720619454976,-500.0,0.00013999,2]
[331672215,1720619454987,-500.0,0.00013999,2]
[331672216,1720619454997,-500.0,0.00013999,2]
[331672217,1720619455008,-533.29235552,0.00013999,2]
[331672218,1720619455018,-500.0,0.00013999,2]
[331672219,1720619455027,-500.0,0.00013999,2]
[331672220,1720619455037,-500.0,0.00013999,2]
[331672221,1720619455047,-500.0,0.00013999,2]
[331672222,1720619455057,-500.0,0.00013999,2]
[331672223,1720619455066,-500.0,0.00013999,2]
[331672224,1720619455076,-500.0,0.00013999,2]
[331672225,1720619455087,-500.0,0.00013999,2]
[331672226,1720619455097,-500.0,0.00013999,2]
[331672227,1720619455108,-435.32674552,0.00013999,2]
[331672228,1720619455118,-500.0,0.00013999,2]
[331672229,1720619455129,-500.0,0.00013999,2]
[331672230,1720619455139,-500.0,0.00013999,2]
[331672231,1720619455150,-500.0,0.00013999,2]
[331672232,1720619455159,-500.0,0.00013999,2]
[331672233,1720619455169,-639.29,0.00013999,2]
[331672234,1720619455180,-500.0,0.00013999,2]
[331672235,1720619455191,-500.0,0.00013999,2]
[331672236,1720619455201,-500.0,0.00013999,2]
[331672237,1720619455212,-500.0,0.00013999,2]
[331672238,1720619455222,-621.14,0.00013999,2]
[331672239,1720619455232,-500.0,0.00013999,2]
[331672240,1720619455242,-500.0,0.00013999,2]
[331672241,1720619455252,-500.0,0.00013999,2]
[331672242,1720619455261,-500.0,0.00013999,2]
[331672243,1720619455270,-500.0,0.00013999,2]
[331672244,1720619455280,-500.0,0.00013999,2]
[331672245,1720619455290,-500.0,0.00013999,2]
[331672246,1720619455303,-500.0,0.00013999,2]
[331672247,1720619455313,-500.0,0.00013999,2]
[331672248,1720619455322,-500.0,0.00013999,2]
[331672249,1720619455332,-500.0,0.00013999,2]
[331672250,1720619455342,-500.0,0.00013999,2]
[331672251,1720619455352,-583.89,0.00013999,2]
[331672252,1720619455362,-500.0,0.00013999,2]
[331672253,1720619455371,-500.0,0.00013999,2]
[331672254,1720619455383,-500.0,0.00013999,2]
[331672255,1720619455392,-500.0,0.00013999,2]
[331672256,1720619455402,-500.0,0.00013999,2]
[331672257,1720619455412,-180.70021539,0.00013999,2]
[331672258,1720619455422,-500.0,0.00013999,2]
[331672259,1720619455432,-500.0,0.00013999,2]
[331672260,1720619455442,-550.53165507,0.00013999,2]
[331672261,1720619455451,-500.0,0.00013999,2]
[331672262,1720619455461,-500.0,0.00013999,2]
[331672263,1720619455471,-500.0,0.00013999,2]
[331672264,1720619455480,-500.0,0.00013999,2]
[331672265,1720619455490,-500.0,0.00013999,2]
[331672266,1720619455501,-500.0,0.00013999,2]
[331672267,1720619455886,-500.0,0.00013999,2]
[331672268,1720619455896,-500.0,0.00013999,2]
[331672269,1720619455905,-500.0,0.00013999,2]
[331672270,1720619455915,-500.0,0.00013999,2]
[331672271,1720619455924,-500.0,0.00013999,2]
[331672272,1720619455933,-263.60604768,0.00013999,2]
[331672273,1720619455944,-500.0,0.00013999,2]
[331672274,1720619455954,-500.0,0.00013999,2]
[331672275,1720619455964,-500.0,0.00013999,2]
[331672276,1720619455975,-500.0,0.00013999,2]
[331672277,1720619455986,-500.0,0.00013999,2]
[331672278,1720619455997,-500.0,0.00013999,2]
[331672279,1720619456006,-500.0,0.00013999,2]
[331672280,1720619456015,-500.0,0.00013999,2]
[331672281,1720619456025,-500.0,0.00013999,2]
[331672282,1720619456034,-500.0,0.00013999,2]
[331672283,1720619456044,-500.0,0.00013999,2]
[331672284,1720619456054,-500.0,0.00013999,2]
[331672285,1720619456063,-500.0,0.00013999,2]
[331672286,1720619456072,-528.99,0.00013999,2]
[331672287,1720619456082,-500.0,0.00013999,2]
[331672288,1720619456091,-500.0,0.00013999,2]
[331672289,1720619456100,-500.0,0.00013999,2]
[331672290,1720619456110,-500.0,0.00013999,2]
[331672291,1720619456119,-586.60973148,0.00013999,2]
[331672292,1720619456130,-500.0,0.00013999,2]
[331672293,1720619456140,-500.0,0.00013999,2]
[331672294,1720619456149,-500.0,0.00013999,2]
[331672295,1720619456159,-579.08,0.00013999,2]
[331672296,1720619456168,-530.61,0.00013999,2]
[331672297,1720619456178,-552.21,0.00013999,2]
[331672298,1720619456189,-500.0,0.00013999,2]
[331672299,1720619456200,-500.0,0.00013999,2]
[331672300,1720619456211,-500.0,0.00013999,2]
[331672301,1720619456222,-500.0,0.00013999,2]
[331672302,1720619456231,-500.0,0.00013999,2]
[331672303,1720619456242,-500.0,0.00013999,2]
[331672304,1720619456251,-500.0,0.00013999,2]
[331672305,1720619456261,-500.0,0.00013999,2]
[331672306,1720619456270,-510.48,0.00013999,2]
[331672307,1720619456280,-500.0,0.00013999,2]
[331672308,1720619456290,-500.0,0.00013999,2]
[331672309,1720619456300,-500.0,0.00013999,2]
[331672310,1720619456309,-500.0,0.00013999,2]
[331672311,1720619456319,-529.05,0.00013999,2]
[331672312,1720619456329,-321.91,0.00013999,2]
[331672313,1720619456340,-500.0,0.00013999,2]
[331672314,1720619456349,-500.0,0.00013999,2]
[331672315,1720619456358,-500.0,0.00013999,2]
[331672316,1720619456369,-500.0,0.00013999,2]
[331672317,1720619456381,-500.0,0.00013999,2]
[331672318,1720619456392,-500.0,0.00013999,2]
[331672319,1720619456402,-500.0,0.00013999,2]
[331672320,1720619456414,-500.0,0.00013999,2]
[331672321,1720619456424,-500.0,0.00013999,2]
[331672322,1720619456434,-500.0,0.00013999,2]
[331672323,1720619456443,-500.0,0.00013999,2]
[331672324,1720619456453,-500.0,0.00013999,2]
[331672325,1720619456464,-500.0,0.00013999,2]
[331672326,1720619456475,-553.97,0.00013999,2]
[331672327,1720619456486,-500.0,0.00013999,2]
[331672328,1720619456495,-500.0,0.00013999,2]
[331672329,1720619456506,-500.0,0.00013999,2]
[331672330,1720619456516,-500.0,0.00013999,2]
[331672331,1720619456528,-500.0,0.00013999,2]
[331672332,1720619456538,-500.0,0.00013999,2]
[331672333,1720619456548,-500.0,0.00013999,2]
[331672334,1720619456557,-500.0,0.00013999,2]
[331672335,1720619456567,-500.0,0.00013999,2]
[331672336,1720619456576,-500.0,0.00013999,2]
[331672337,1720619456585,-500.0,0.00013999,2]
[331672338,1720619456597,-500.0,0.00013999,2]
[331672339,1720619456608,-500.0,0.00013999,2]
[331672340,1720619456618,-500.0,0.00013999,2]
[331672341,1720619456628,-500.0,0.00013999,2]
[331672342,1720619456638,-688.0,0.00014,2]
[331672343,1720619456648,-252414.53132366,0.00014,2]
[331672344,1720619456658,-13894.5060926,0.00014,2]
[331672345,1720619456728,-799.78374911,0.00014,2]
[331672346,1720619456741,-2082.52457373,0.00014,2]
[331672347,1720619456753,-8571.89705668,0.00014,2]
[331672348,1720619456766,-358.54738649,0.00014,2]
[331672349,1720619456778,-661.26075357,0.00014,2]
[331672350,1720619456790,-501.82699371,0.00014,2]
[331672351,1720619456802,-1689.57717869,0.00014,2]
[331672352,1720619456814,-550.82743174,0.00014,2]
[331672353,1720619456825,-800.06354583,0.00014,2]
[331672354,1720619456837,-459.61727487,0.00014,2]
[331672355,1720619456849,-2762.05,0.00014,2]
[331672356,1720619456860,-809.54929455,0.00014,2]
[331672357,1720619456873,-1155.6,0.00014,2]
[331672358,1720619456886,-441207.60869464,0.00014,2]
[331672359,1720619456898,-422.24066894,0.00014,2]
[331672360,1720619456910,-5347.65942936,0.00014,2]
[331672361,1720619456923,-5781.0,0.00014,2]
[331672362,1720619456942,-1557.08511344,0.00014,2]
[331672363,1720619456957,-513.39332562,0.00014,2]
[331672364,1720619456972,-521.4739999,0.00014,2]
[331672365,1720619456987,-41426.61858732,0.00014,2]
[331672366,1720619457002,-480.16982061,0.00014,2]
[331672367,1720619457016,-2195.05789206,0.00014,2]
[331672368,1720619718984,482.19,0.00011034,2]
[331672369,1720619786806,806.53671326,0.00011034,2]
[331672370,1720620096550,168.69740175,0.00011199,2]
[331672371,1720620205243,189.0,0.000113,2]
[331672372,1720620209730,114.39647482,0.00011199,2]
[331672373,1720620209761,191.25891667,0.00011199,2]
[331672374,1720620240961,58.74108333,0.00011199,2]
[331672375,1720620240994,310.44184708,0.00011199,2]
[331672376,1720620253852,2665.08815292,0.00011199,2]
[331672377,1720620253884,8330.52746991,0.00011199,2]
[331672378,1720620285478,200.91297198,0.00011199,2]
[331672379,1720620287956,500.0,0.00011199,2]
[331672380,1720620289167,500.0,0.00011199,2]
[331672381,1720620289638,500.0,0.00011199,2]
[331672382,1720620290406,500.0,0.00011199,2]
[331672383,1720620290786,500.0,0.00011199,2]
[331672384,1720620291266,500.0,0.00011199,2]
[331672385,1720620291635,500.0,0.00011199,2]
[331672386,1720620292276,500.0,0.00011199,2]
[331672387,1720620292716,500.0,0.00011199,2]
[331672388,1720620293495,662.0,0.00011199,2]
[331672389,1720620335771,488.93,0.00010826,2]
[331672390,1720620411952,5176.13327928,0.00011199,2]
[331672391,1720620543818,1896.518,0.00025,60]
[331672406,1720620632263,-451.19805924,0.00012314,2]
[331672407,1720620632272,-0.72686849,0.00012698,2]
[331672413,1720620633147,-1463.45546276,0.00012698,2]
[331672414,1720620633159,-2005.57355483,0.00012698,2]
[331672415,1720620633171,-322.91174239,0.00012698,2]
[331672416,1720620633183,-462.53216332,0.00012698,2]
[331672417,1720620633195,-746.44510063,0.00012698,2]
[331672418,1720620633208,-280.56667432,0.00012698,2]
[331672419,1720620633223,-18607.78843326,0.00012698,2]
[331672420,1720620633233,-1551.79,0.00012702,2]
[331672421,1720620633243,-1000.0,0.00012734,2]
[331672422,1720620633255,-250.0,0.00012749,2]
[331672423,1720620633265,-250.0,0.00012749,2]
[331672424,1720620633275,-183.67,0.00012758,2]
[331672425,1720620633284,-606.0,0.00012758,2]
[331672426,1720620633294,-500.0,0.00012758,2]
[331672427,1720620633305,-356.04,0.00012941,2]
[331672428,1720620633315,-300.0,0.00013,4]
[331672429,1720620633324,-488.93,0.0001309,2]
[331672430,1720620633335,-600.0,0.000131,4]
[331672431,1720620633344,-10000.0,0.00013193,2]
[331672432,1720620633356,-900.0,0.000132,4]
[331672433,1720620633368,-1200.0,0.000133,4]
[331672434,1720620633379,-1500.0,0.000134,4]
[331672435,1720620633388,-150.0,0.0001341,2]
[331672436,1720620633398,-802.996467,0.00013411,2]
[331672437,1720620633408,-1453.04,0.00013411,2]
[331672438,1720620633418,-499.99,0.00013411,2]
[331672439,1720620633427,-193.868125,0.00013411,2]
[331672440,1720620633436,-158.231483,0.00013411,2]
[331672441,1720620633445,-178.625947,0.00013411,2]
[331672442,1720620633456,-289.218619,0.00013411,2]
[331672443,1720620633466,-275.31865,0.00013411,2]
[331672444,1720620633475,-304.0,0.00013448,2]
[331672445,1720620633484,-300.0,0.000135,4]
[331672446,1720620633494,-802.996467,0.00013578,2]
[331672447,1720620633506,-158.231483,0.00013578,2]
[331672448,1720620633516,-289.218619,0.00013578,2]
[331672449,1720620633526,-275.31865,0.00013578,2]
[331672450,1720620633536,-300.0,0.000136,4]
[331672451,1720620633545,-5193.013,0.00013656,2]
[331672452,1720620633555,-5816.0,0.00013656,2]
[331672453,1720620633565,-406.6028,0.00013671,2]
[331672454,1720620633574,-500.0,0.00013698,2]
[331672455,1720620633584,-169.68145013,0.00013698,2]
[331672456,1720620633594,-560.99940059,0.00013698,2]
[331672457,1720620633604,-184.18,0.00013698,2]
[331672458,1720620633615,-407.25555304,0.00013698,2]
[331672459,1720620633625,-254.51,0.00013698,2]
[331672460,1720620633634,-500.0,0.00013698,2]
[331672461,1720620633643,-500.0,0.00013698,2]
[331672462,1720620633653,-630.67418249,0.00013698,2]
[331672463,1720620633662,-500.0,0.00013698,2]
[331672464,1720620633674,-500.0,0.00013698,2]
[331672465,1720620633684,-460.03369218,0.00013698,2]
[331672466,1720620633694,-269.80331402,0.00013698,2]
[331672467,1720620633703,-500.0,0.00013698,2]
[331672468,1720620633712,-155.65,0.00013698,2]
[331672469,1720620633722,-500.0,0.00013698,2]
[331672470,1720620633732,-500.0,0.00013698,2]
[331672471,1720620633742,-500.0,0.00013698,2]
[331672472,1720620633753,-500.0,0.00013698,2]
[331672473,1720620633763,-500.0,0.00013698,2]
[331672474,1720620633772,-500.0,0.00013698,2]
[331672475,1720620633791,-500.0,0.00013698,2]
[331672476,1720620633803,-500.0,0.00013698,2]
[331672477,1720620633814,-186.94,0.00013698,2]
[331672478,1720620633823,-238.81,0.00013698,2]
[331672479,1720620633832,-500.0,0.00013698,2]
[331672480,1720620633842,-500.0,0.00013698,2]
[331672481,1720620633852,-500.0,0.00013698,2]
[331672482,1720620633862,-500.0,0.00013698,2]
[331672483,1720620633871,-500.0,0.00013698,2]
[331672484,1720620633880,-500.0,0.00013698,2]
[331672485,1720620633889,-500.0,0.00013698,2]
[331672486,1720620633900,-500.0,0.00013698,2]
[331672487,1720620633909,-1162.66,0.00013699,2]
[331672488,1720620633919,-386.42,0.00013699,2]
[331672489,1720620633928,-300.0,0.000137,5]
[331672490,1720620633939,-802.996467,0.00013746,2]
[331672491,1720620634269,-158.231483,0.00013746,2]
[331672492,1720620634280,-289.218619,0.00013746,2]
[331672493,1720620634289,-275.31865,0.00013746,2]
[331672494,1720620634299,-500.0,0.00013753,2]
[331672495,1720620634309,-500.0,0.00013753,2]
[331672496,1720620634318,-500.0,0.00013753,2]
[331672497,1720620634327,-500.0,0.00013753,2]
[331672498,1720620634336,-500.0,0.00013753,2]
[331672499,1720620634346,-500.0,0.00013753,2]
[331672500,1720620634356,-500.0,0.00013753,2]
[331672501,1720620634367,-345.17,0.00013753,2]
[331672502,1720620634376,-500.0,0.00013753,2]
[331672503,1720620634386,-500.0,0.00013753,2]
[331672504,1720620634395,-595.61,0.00013753,2]
[331672505,1720620634404,-500.0,0.00013753,2]
[331672506,1720620634413,-500.0,0.00013753,2]
[331672507,1720620634423,-500.0,0.00013753,2]
[331672508,1720620634432,-500.0,0.00013753,2]
[331672509,1720620634441,-448.38660366,0.00013753,2]
[331672510,1720620634451,-500.0,0.00013753,2]
[331672511,1720620634460,-500.0,0.00013753,2]
[331672512,1720620634469,-500.0,0.00013753,2]
[331672513,1720620634479,-500.0,0.00013759,2]
[331672514,1720620634488,-500.0,0.00013768,2]
[331672515,1720620634497,-500.0,0.00013777,2]
[331672516,1720620634508,-500.0,0.00013786,2]
[331672517,1720620634518,-500.0,0.00013794,2]
[331672518,1720620634527,-4745.81457762,0.00013799,2]
[331672519,1720620634537,-4745.81457753,0.00013799,2]
[331672520,1720620634546,-4745.81457753,0.00013799,2]
[331672521,1720620634555,-4745.81457753,0.00013799,2]
[331672522,1720620634565,-4745.81457753,0.00013799,2]
[331672523,1720620634574,-4705.7756,0.000138,2]